[Event "*** Titled Tuesday Blitz"]
[Site "Chess.com"]
[Date "2020.04.14"]
[Round "2"]
[White "renanreis"]
[Black "XiaoKangZhong"]
[Result "1-0"]
[WhiteElo "2181"]
[BlackElo "2385"]
[TimeControl "180+1"]
[EndTime "10:18:44 PDT"]
[Termination "renanreis won by checkmate"]

1. e4 {[%clk 0:03:00.9]} 1... c6 {[%clk 0:02:55.6]} 2. Nf3 {[%clk 0:03:00.7]}
2... d5 {[%clk 0:02:56.2]} 3. Nc3 {[%clk 0:03:01.1]} 3... dxe4 {[%clk
0:02:56.2]} 4. Nxe4 {[%clk 0:03:02]} 4... Nf6 {[%clk 0:02:56.8]} 5. Qe2 {[%clk
0:03:00.9]} 5... Nxe4 {[%clk 0:02:49.9]} 6. Qxe4 {[%clk 0:03:01.8]} 6... Qd5
{[%clk 0:02:50.3]} 7. Qh4 {[%clk 0:03:01.2]} 7... Qe6+ {[%clk 0:02:45.6]} 8. Be2
{[%clk 0:03:00.7]} 8... Qg4 {[%clk 0:02:46.2]} 9. Qg3 {[%clk 0:03:00.4]} 9...
Qxg3 {[%clk 0:02:44.4]} 10. hxg3 {[%clk 0:03:01.3]} 10... g6 {[%clk 0:02:39.3]}
11. Ng5 {[%clk 0:02:56.7]} 11... h6 {[%clk 0:02:38]} 12. Bc4 {[%clk 0:02:53.3]}
12... e6 {[%clk 0:02:34.1]} 13. d3 {[%clk 0:02:45.5]} 13... Bg7 {[%clk
0:02:33.4]} 14. Ne4 {[%clk 0:02:44.1]} 14... Ke7 {[%clk 0:02:33.1]} 15. c3
{[%clk 0:02:24]} 15... Nd7 {[%clk 0:02:31.8]} 16. Bf4 {[%clk 0:02:13.7]} 16...
Ne5 {[%clk 0:02:21.9]} 17. O-O-O {[%clk 0:01:50.3]} 17... Nxc4 {[%clk
0:02:08.3]} 18. dxc4 {[%clk 0:01:51.2]} 18... e5 {[%clk 0:02:08.8]} 19. Be3
{[%clk 0:01:49.1]} 19... Be6 {[%clk 0:02:08.5]} 20. Bc5+ {[%clk 0:01:47.8]}
20... Ke8 {[%clk 0:02:03.6]} 21. Nd6+ {[%clk 0:01:47.8]} 21... Kf8 {[%clk
0:01:59.6]} 22. Nxb7+ {[%clk 0:01:30.3]} 22... Kg8 {[%clk 0:01:58.5]} 23. b3
{[%clk 0:01:24.4]} 23... Kh7 {[%clk 0:01:42.6]} 24. Be3 {[%clk 0:01:21.2]} 24...
a5 {[%clk 0:01:37.5]} 25. a4 {[%clk 0:01:17]} 25... Bf5 {[%clk 0:01:25.2]} 26.
Nd6 {[%clk 0:01:13.8]} 26... Be6 {[%clk 0:01:24.8]} 27. Kb2 {[%clk 0:00:33.5]}
27... f5 {[%clk 0:01:15.9]} 28. f3 {[%clk 0:00:29.5]} 28... Rhd8 {[%clk
0:01:10.1]} 29. Nb7 {[%clk 0:00:28]} 29... Rdb8 {[%clk 0:01:09.6]} 30. Nc5
{[%clk 0:00:27.7]} 30... Bxc4 {[%clk 0:01:01.9]} 31. Rd7 {[%clk 0:00:20.1]}
31... h5 {[%clk 0:00:52.3]} 32. g4 {[%clk 0:00:18.5]} 32... f4 {[%clk
0:00:41.8]} 33. Bf2 {[%clk 0:00:17.7]} 33... Rxb3+ {[%clk 0:00:39.2]} 34. Nxb3
{[%clk 0:00:16.9]} 34... Rb8 {[%clk 0:00:39.4]} 35. gxh5 {[%clk 0:00:16.4]}
35... Rxb3+ {[%clk 0:00:39.9]} 36. Kc2 {[%clk 0:00:16.7]} 36... Ra3 {[%clk
0:00:35.6]} 37. h6 {[%clk 0:00:16.1]} 37... Ra2+ {[%clk 0:00:31.7]} 38. Kb1
{[%clk 0:00:16.2]} 38... g5 {[%clk 0:00:21.3]} 39. hxg7+ {[%clk 0:00:17.1]}
39... Kg6 {[%clk 0:00:21.7]} 40. Rh8 {[%clk 0:00:12.5]} 40... Rxf2 {[%clk
0:00:20.2]} 41. g8=Q+ {[%clk 0:00:13.4]} 41... Bxg8 {[%clk 0:00:20.3]} 42. Rxg8+
{[%clk 0:00:14]} 42... Kf6 {[%clk 0:00:20.8]} 43. Rd6+ {[%clk 0:00:12.6]} 43...
Ke7 {[%clk 0:00:21]} 44. Rxc6 {[%clk 0:00:13.2]} 44... Rxg2 {[%clk 0:00:21.7]}
45. Rg7+ {[%clk 0:00:13.3]} 45... Kf8 {[%clk 0:00:21.6]} 46. Rb7 {[%clk
0:00:13.5]} 46... Rg1+ {[%clk 0:00:21.9]} 47. Kc2 {[%clk 0:00:12.5]} 47... Rg2+
{[%clk 0:00:22.4]} 48. Kd3 {[%clk 0:00:10.2]} 48... e4+ {[%clk 0:00:21]} 49.
Kxe4 {[%clk 0:00:09.7]} 49... Re2+ {[%clk 0:00:21.7]} 50. Kf5 {[%clk 0:00:10]}
50... Re8 {[%clk 0:00:21.9]} 51. Kf6 {[%clk 0:00:09.3]} 51... Rd8 {[%clk
0:00:21.3]} 52. Rcc7 {[%clk 0:00:09]} 52... Rd6+ {[%clk 0:00:20.8]} 53. Kxg5
{[%clk 0:00:09.3]} 53... Rd8 {[%clk 0:00:21.7]} 54. Kxf4 {[%clk 0:00:09.4]}
54... Kg8 {[%clk 0:00:21.5]} 55. Kg5 {[%clk 0:00:09.3]} 55... Kf8 {[%clk
0:00:21.7]} 56. Rf7+ {[%clk 0:00:09.3]} 56... Kg8 {[%clk 0:00:22]} 57. Rg7+
{[%clk 0:00:09.8]} 57... Kf8 {[%clk 0:00:22.4]} 58. Rbf7+ {[%clk 0:00:07.9]}
58... Ke8 {[%clk 0:00:22.6]} 59. Ra7 {[%clk 0:00:08.5]} 59... Kf8 {[%clk
0:00:22.6]} 60. Rh7 {[%clk 0:00:08.2]} 60... Kg8 {[%clk 0:00:22.5]} 61. Rhd7
{[%clk 0:00:03.2]} 61... Rc8 {[%clk 0:00:20.2]} 62. Rxa5 {[%clk 0:00:02.9]}
62... Kf8 {[%clk 0:00:20]} 63. Raa7 {[%clk 0:00:03]} 63... Kg8 {[%clk
0:00:20.1]} 64. Kg6 {[%clk 0:00:02.8]} 64... Rc6+ {[%clk 0:00:20.1]} 65. Kg5
{[%clk 0:00:03.1]} 65... Rc8 {[%clk 0:00:20.6]} 66. Kg4 {[%clk 0:00:03.5]} 66...
Kf8 {[%clk 0:00:21]} 67. f4 {[%clk 0:00:04.4]} 67... Kg8 {[%clk 0:00:21.4]} 68.
f5 {[%clk 0:00:05.3]} 68... Kf8 {[%clk 0:00:21.8]} 69. Kg5 {[%clk 0:00:06.2]}
69... Kg8 {[%clk 0:00:22]} 70. f6 {[%clk 0:00:06.7]} 70... Kf8 {[%clk
0:00:22.1]} 71. Kg6 {[%clk 0:00:07.6]} 71... Kg8 {[%clk 0:00:21.7]} 72. Rg7+
{[%clk 0:00:07.2]} 72... Kf8 {[%clk 0:00:22.1]} 73. Raf7+ {[%clk 0:00:07.5]}
73... Ke8 {[%clk 0:00:22.1]} 74. Rg8# {[%clk 0:00:07.9]} 1-0

[Event "*** Titled Tuesday Blitz"]
[Site "Chess.com"]
[Date "2020.04.14"]
[Round "2"]
[White "Mikhail_Biryukov"]
[Black "theprosecution1"]
[Result "1/2-1/2"]
[WhiteElo "2569"]
[BlackElo "2798"]
[TimeControl "180+1"]
[EndTime "10:18:48 PDT"]
[Termination "Game drawn - insufficient material"]

1. e4 {[%clk 0:03:00.9]} 1... c6 {[%clk 0:03:00.1]} 2. d4 {[%clk 0:02:56.8]}
2... d5 {[%clk 0:03:00.6]} 3. Nd2 {[%clk 0:02:48]} 3... dxe4 {[%clk 0:03:00.6]}
4. Nxe4 {[%clk 0:02:48.9]} 4... Nd7 {[%clk 0:03:01.4]} 5. Bc4 {[%clk 0:02:47.6]}
5... Ngf6 {[%clk 0:03:00.5]} 6. Nxf6+ {[%clk 0:02:48.1]} 6... Nxf6 {[%clk
0:02:58.9]} 7. Nf3 {[%clk 0:02:48.6]} 7... Bf5 {[%clk 0:02:56.6]} 8. c3 {[%clk
0:02:48.6]} 8... e6 {[%clk 0:02:50]} 9. O-O {[%clk 0:02:46.8]} 9... Bd6 {[%clk
0:02:49.4]} 10. Bg5 {[%clk 0:02:44.2]} 10... O-O {[%clk 0:02:49.1]} 11. Bh4
{[%clk 0:02:42.6]} 11... h6 {[%clk 0:02:47.9]} 12. Bg3 {[%clk 0:02:42.4]} 12...
Bxg3 {[%clk 0:02:46.2]} 13. hxg3 {[%clk 0:02:43.3]} 13... Qc7 {[%clk 0:02:46.3]}
14. a4 {[%clk 0:02:30.5]} 14... a5 {[%clk 0:02:45.5]} 15. Re1 {[%clk 0:02:27.4]}
15... Rad8 {[%clk 0:02:45]} 16. Qe2 {[%clk 0:02:24.7]} 16... c5 {[%clk
0:02:42.3]} 17. Qe5 {[%clk 0:02:21.4]} 17... Qxe5 {[%clk 0:02:39.1]} 18. Rxe5
{[%clk 0:02:20.7]} 18... Nd7 {[%clk 0:02:39]} 19. Re3 {[%clk 0:02:15.4]} 19...
Bg4 {[%clk 0:02:28.1]} 20. dxc5 {[%clk 0:01:50.4]} 20... Bxf3 {[%clk 0:02:27.9]}
21. gxf3 {[%clk 0:01:48.6]} 21... Nxc5 {[%clk 0:02:28.5]} 22. b4 {[%clk
0:01:41.3]} 22... axb4 {[%clk 0:02:29.4]} 23. cxb4 {[%clk 0:01:41.2]} 23... Rd4
{[%clk 0:02:30.1]} 24. Rc3 {[%clk 0:01:36.8]} 24... Nd7 {[%clk 0:02:28.6]} 25.
Bb5 {[%clk 0:01:35.3]} 25... Nb6 {[%clk 0:02:27.4]} 26. Rc7 {[%clk 0:01:32]}
26... Rb8 {[%clk 0:02:23]} 27. Rb1 {[%clk 0:01:27.4]} 27... Nd5 {[%clk
0:02:22.5]} 28. Rc4 {[%clk 0:01:27]} 28... Rxc4 {[%clk 0:02:03.2]} 29. Bxc4
{[%clk 0:01:26.9]} 29... Nc3 {[%clk 0:02:04.1]} 30. Ra1 {[%clk 0:01:23]} 30...
Kf8 {[%clk 0:02:03.4]} 31. a5 {[%clk 0:01:20.4]} 31... Ke7 {[%clk 0:01:59.6]}
32. b5 {[%clk 0:00:58.8]} 32... Kd6 {[%clk 0:01:54.9]} 33. a6 {[%clk 0:00:59]}
33... bxa6 {[%clk 0:01:54.5]} 34. bxa6 {[%clk 0:00:59.9]} 34... Kc5 {[%clk
0:01:52.2]} 35. Bf1 {[%clk 0:00:57.5]} 35... Kb6 {[%clk 0:01:38.4]} 36. f4
{[%clk 0:00:56.4]} 36... Rc8 {[%clk 0:01:09.2]} 37. Re1 {[%clk 0:00:32.3]} 37...
Rc7 {[%clk 0:01:03.1]} 38. Re5 {[%clk 0:00:30.6]} 38... g6 {[%clk 0:00:58]} 39.
g4 {[%clk 0:00:27.9]} 39... Nd5 {[%clk 0:00:57.9]} 40. f5 {[%clk 0:00:27.7]}
40... gxf5 {[%clk 0:00:49.4]} 41. gxf5 {[%clk 0:00:27.9]} 41... Rc6 {[%clk
0:00:39.4]} 42. fxe6 {[%clk 0:00:27.9]} 42... fxe6 {[%clk 0:00:40.3]} 43. Rh5
{[%clk 0:00:27.7]} 43... Nc7 {[%clk 0:00:34.2]} 44. Rxh6 {[%clk 0:00:26.4]}
44... Nxa6 {[%clk 0:00:34.7]} 45. Bxa6 {[%clk 0:00:21.4]} 45... Kxa6 {[%clk
0:00:35.6]} 46. Kg2 {[%clk 0:00:21.8]} 46... Kb6 {[%clk 0:00:36.2]} 47. Kf3
{[%clk 0:00:22.1]} 47... Kc7 {[%clk 0:00:36.7]} 48. Ke4 {[%clk 0:00:22]} 48...
Kd6 {[%clk 0:00:37]} 49. f4 {[%clk 0:00:22.6]} 49... Rc4+ {[%clk 0:00:36.6]} 50.
Kf3 {[%clk 0:00:22.9]} 50... Rc5 {[%clk 0:00:34.7]} 51. Ke4 {[%clk 0:00:22.3]}
51... Ke7 {[%clk 0:00:34.2]} 52. Rh7+ {[%clk 0:00:21.2]} 52... Kf6 {[%clk
0:00:34.2]} 53. Rh6+ {[%clk 0:00:21.2]} 53... Kf7 {[%clk 0:00:34.7]} 54. Rh8
{[%clk 0:00:18.5]} 54... Rc4+ {[%clk 0:00:34.1]} 55. Ke5 {[%clk 0:00:18.2]}
55... Rc5+ {[%clk 0:00:33.2]} 56. Ke4 {[%clk 0:00:18.4]} 56... Rb5 {[%clk
0:00:32.7]} 57. Ra8 {[%clk 0:00:17.1]} 57... Kf6 {[%clk 0:00:32.4]} 58. Rf8+
{[%clk 0:00:16.6]} 58... Ke7 {[%clk 0:00:32.3]} 59. Rh8 {[%clk 0:00:16.5]} 59...
Rb4+ {[%clk 0:00:32.5]} 60. Kf3 {[%clk 0:00:16.4]} 60... Rb5 {[%clk 0:00:33.4]}
61. Kg4 {[%clk 0:00:16.4]} 61... Kf6 {[%clk 0:00:33.7]} 62. Rh6+ {[%clk
0:00:16.1]} 62... Kf7 {[%clk 0:00:34.1]} 63. Rh5 {[%clk 0:00:15.9]} 63... Rb1
{[%clk 0:00:33.5]} 64. Ra5 {[%clk 0:00:15.1]} 64... Rg1+ {[%clk 0:00:32.7]} 65.
Kf3 {[%clk 0:00:15.2]} 65... Rb1 {[%clk 0:00:33.6]} 66. Ke4 {[%clk 0:00:15.1]}
66... Kf6 {[%clk 0:00:33.6]} 67. Rh5 {[%clk 0:00:14.2]} 67... Rb4+ {[%clk
0:00:33.7]} 68. Kf3 {[%clk 0:00:13.9]} 68... Ke7 {[%clk 0:00:33.9]} 69. Ra5
{[%clk 0:00:13.2]} 69... Rb3+ {[%clk 0:00:32.1]} 70. Kg4 {[%clk 0:00:13.3]}
70... Rb1 {[%clk 0:00:31]} 71. f5 {[%clk 0:00:12.1]} 71... Rg1+ {[%clk 0:00:30]}
72. Kf4 {[%clk 0:00:11.1]} 72... Rf1+ {[%clk 0:00:28.5]} 73. Ke4 {[%clk
0:00:11.3]} 73... Rxf5 {[%clk 0:00:29.4]} 74. Rxf5 {[%clk 0:00:11.2]} 74...
exf5+ {[%clk 0:00:30.3]} 75. Kxf5 {[%clk 0:00:12.1]} 1/2-1/2

[Event "*** Titled Tuesday Blitz"]
[Site "Chess.com"]
[Date "2020.04.14"]
[Round "2"]
[White "Matibar"]
[Black "wild_cat99"]
[Result "0-1"]
[WhiteElo "2745"]
[BlackElo "2548"]
[TimeControl "180+1"]
[EndTime "10:18:49 PDT"]
[Termination "wild_cat99 won on time"]

1. Nf3 {[%clk 0:02:47.2]} 1... Nf6 {[%clk 0:02:59.9]} 2. c4 {[%clk 0:02:45.9]}
2... g6 {[%clk 0:02:59.9]} 3. g3 {[%clk 0:02:42.9]} 3... Bg7 {[%clk 0:02:59.7]}
4. Bg2 {[%clk 0:02:43.6]} 4... O-O {[%clk 0:02:59.5]} 5. O-O {[%clk 0:02:44.2]}
5... d5 {[%clk 0:03:00.1]} 6. cxd5 {[%clk 0:02:42.6]} 6... Nxd5 {[%clk 0:03:01]}
7. Nc3 {[%clk 0:02:41.5]} 7... Nxc3 {[%clk 0:02:59.3]} 8. dxc3 {[%clk
0:02:38.3]} 8... c5 {[%clk 0:03:00.2]} 9. Be3 {[%clk 0:02:30.3]} 9... Qc7 {[%clk
0:02:56.5]} 10. Qd5 {[%clk 0:02:25.1]} 10... Na6 {[%clk 0:02:43.2]} 11. Rfd1
{[%clk 0:02:12.5]} 11... Be6 {[%clk 0:02:40.3]} 12. Qg5 {[%clk 0:02:12.4]} 12...
Rad8 {[%clk 0:02:29]} 13. Qh4 {[%clk 0:02:12.1]} 13... Bf6 {[%clk 0:02:08.7]}
14. Ng5 {[%clk 0:02:01.2]} 14... Bxg5 {[%clk 0:01:52.2]} 15. Bxg5 {[%clk
0:02:02.1]} 15... f6 {[%clk 0:01:52]} 16. Bh6 {[%clk 0:02:01.9]} 16... Rfe8
{[%clk 0:01:51.9]} 17. Qa4 {[%clk 0:01:50.4]} 17... c4 {[%clk 0:01:48.3]} 18.
Qb5 {[%clk 0:01:38]} 18... Nc5 {[%clk 0:01:46.6]} 19. Bf4 {[%clk 0:01:36]} 19...
Qb6 {[%clk 0:01:42.3]} 20. Qxb6 {[%clk 0:01:35.8]} 20... axb6 {[%clk 0:01:43.2]}
21. Bc7 {[%clk 0:01:35.9]} 21... Rxd1+ {[%clk 0:01:39.8]} 22. Rxd1 {[%clk
0:01:36.8]} 22... b5 {[%clk 0:01:40.6]} 23. Rd2 {[%clk 0:01:32.3]} 23... Na4
{[%clk 0:01:40.8]} 24. Ba5 {[%clk 0:01:30.5]} 24... Rb8 {[%clk 0:01:39]} 25. Bb4
{[%clk 0:01:29.4]} 25... Kf7 {[%clk 0:01:37]} 26. f4 {[%clk 0:01:27.2]} 26... h5
{[%clk 0:01:33.3]} 27. e4 {[%clk 0:01:26.7]} 27... b6 {[%clk 0:01:30.3]} 28. f5
{[%clk 0:00:57.2]} 28... gxf5 {[%clk 0:01:31.2]} 29. exf5 {[%clk 0:00:58.1]}
29... Bxf5 {[%clk 0:01:30.6]} 30. Bc6 {[%clk 0:00:55.8]} 30... Nc5 {[%clk
0:01:29.4]} 31. Bxb5 {[%clk 0:00:55.3]} 31... Ne4 {[%clk 0:01:26.9]} 32. Bxc4+
{[%clk 0:00:54.6]} 32... Kg6 {[%clk 0:01:27.1]} 33. Rd1 {[%clk 0:00:44.8]} 33...
e6 {[%clk 0:01:27.3]} 34. a4 {[%clk 0:00:34.9]} 34... Ra8 {[%clk 0:01:24.3]} 35.
Bb5 {[%clk 0:00:34.7]} 35... h4 {[%clk 0:01:21.4]} 36. g4 {[%clk 0:00:26.1]}
36... Bxg4 {[%clk 0:01:19.8]} 37. Bc6 {[%clk 0:00:26.4]} 37... Ra7 {[%clk
0:01:10.6]} 38. Bxe4+ {[%clk 0:00:25.5]} 38... f5 {[%clk 0:01:11.1]} 39. Rd4
{[%clk 0:00:19.9]} 39... fxe4 {[%clk 0:01:08.7]} 40. Rxe4 {[%clk 0:00:20.8]}
40... Kf5 {[%clk 0:01:06.9]} 41. Re1 {[%clk 0:00:19.9]} 41... Rxa4 {[%clk
0:01:03]} 42. Kf2 {[%clk 0:00:20.4]} 42... Ra2 {[%clk 0:01:02.9]} 43. Ba3 {[%clk
0:00:20.4]} 43... b5 {[%clk 0:01:00.7]} 44. Ke3 {[%clk 0:00:21]} 44... e5 {[%clk
0:00:57.9]} 45. Rf1+ {[%clk 0:00:21.2]} 45... Ke6 {[%clk 0:00:58]} 46. Rg1
{[%clk 0:00:22.1]} 46... Bf5 {[%clk 0:00:55.8]} 47. Rd1 {[%clk 0:00:21.3]} 47...
Bg4 {[%clk 0:00:53.1]} 48. Rf1 {[%clk 0:00:21]} 48... Bf5 {[%clk 0:00:52.8]} 49.
Rd1 {[%clk 0:00:21]} 49... Bg4 {[%clk 0:00:52.7]} 50. Rd6+ {[%clk 0:00:17.3]}
50... Kf5 {[%clk 0:00:53]} 51. Rb6 {[%clk 0:00:17.5]} 51... Ra1 {[%clk
0:00:51.6]} 52. Rxb5 {[%clk 0:00:17.8]} 52... Re1+ {[%clk 0:00:51]} 53. Kd3
{[%clk 0:00:16.8]} 53... Be2+ {[%clk 0:00:47.3]} 54. Kd2 {[%clk 0:00:17.2]}
54... Bxb5 {[%clk 0:00:47.2]} 55. Kxe1 {[%clk 0:00:17.8]} 55... Ke4 {[%clk
0:00:45]} 56. Be7 {[%clk 0:00:13.1]} 56... h3 {[%clk 0:00:44]} 57. Bd6 {[%clk
0:00:13.4]} 57... Bc4 {[%clk 0:00:41.4]} 58. Kd2 {[%clk 0:00:13.3]} 58... Bb3
{[%clk 0:00:41.1]} 59. Bb8 {[%clk 0:00:12.7]} 59... Bc4 {[%clk 0:00:40.8]} 60.
Kc2 {[%clk 0:00:12.9]} 60... Bd3+ {[%clk 0:00:37.3]} 61. Kb3 {[%clk 0:00:12.9]}
61... Kd5 {[%clk 0:00:30.7]} 62. Kb4 {[%clk 0:00:12.2]} 62... Bg6 {[%clk
0:00:26.7]} 63. b3 {[%clk 0:00:05.6]} 63... Be8 {[%clk 0:00:18.3]} 64. Ba7
{[%clk 0:00:04.5]} 64... Ke4 {[%clk 0:00:16.3]} 65. Bb8 {[%clk 0:00:04.9]} 65...
Kd5 {[%clk 0:00:14.2]} 66. Ka5 {[%clk 0:00:05.4]} 66... Bd7 {[%clk 0:00:11.7]}
67. b4 {[%clk 0:00:05.7]} 67... e4 {[%clk 0:00:10.8]} 68. Ba7 {[%clk 0:00:05.3]}
68... Kc4 {[%clk 0:00:08.7]} 69. Bd4 {[%clk 0:00:01.7]} 69... Be8 {[%clk
0:00:08.6]} 0-1

[Event "*** Titled Tuesday Blitz"]
[Site "Chess.com"]
[Date "2020.04.14"]
[Round "2"]
[White "Durarbayli"]
[Black "mbachez"]
[Result "0-1"]
[WhiteElo "2818"]
[BlackElo "2488"]
[TimeControl "180+1"]
[EndTime "10:18:54 PDT"]
[Termination "mbachez won by resignation"]

1. e4 {[%clk 0:03:00.9]} 1... e6 {[%clk 0:02:59.6]} 2. d4 {[%clk 0:03:00.4]}
2... d5 {[%clk 0:02:59.7]} 3. Nd2 {[%clk 0:03:01]} 3... h6 {[%clk 0:02:58.8]} 4.
Ngf3 {[%clk 0:03:00.3]} 4... Nf6 {[%clk 0:02:58.7]} 5. e5 {[%clk 0:02:59.7]}
5... Nfd7 {[%clk 0:02:58.7]} 6. c3 {[%clk 0:02:59.4]} 6... c5 {[%clk 0:02:58.6]}
7. Bd3 {[%clk 0:02:59.2]} 7... Nc6 {[%clk 0:02:58.7]} 8. O-O {[%clk 0:02:57.3]}
8... g5 {[%clk 0:02:58.8]} 9. h3 {[%clk 0:02:52.8]} 9... h5 {[%clk 0:02:58.5]}
10. Re1 {[%clk 0:02:48.9]} 10... g4 {[%clk 0:02:56.7]} 11. hxg4 {[%clk
0:02:49.6]} 11... hxg4 {[%clk 0:02:56.4]} 12. Nh2 {[%clk 0:02:50.2]} 12... cxd4
{[%clk 0:02:48.3]} 13. cxd4 {[%clk 0:02:42.2]} 13... g3 {[%clk 0:02:15.4]} 14.
fxg3 {[%clk 0:02:18.5]} 14... Nxd4 {[%clk 0:02:14.3]} 15. Ndf1 {[%clk 0:02:15]}
15... Bc5 {[%clk 0:02:00.9]} 16. Kh1 {[%clk 0:02:12.9]} 16... Nc6 {[%clk
0:01:57.8]} 17. Bf4 {[%clk 0:02:10.9]} 17... Bd4 {[%clk 0:01:54.5]} 18. Qg4
{[%clk 0:01:56]} 18... Ndxe5 {[%clk 0:01:36]} 19. Bxe5 {[%clk 0:01:26.8]} 19...
Bxe5 {[%clk 0:01:35]} 20. Re2 {[%clk 0:00:51.6]} 20... Qf6 {[%clk 0:01:29.3]}
21. Rb1 {[%clk 0:00:36.8]} 21... Bd7 {[%clk 0:01:28.4]} 22. Bb5 {[%clk
0:00:27.7]} 22... O-O-O {[%clk 0:01:23.9]} 23. Qf3 {[%clk 0:00:17.9]} 23... Nd4
{[%clk 0:01:07.6]} 24. Qc3+ {[%clk 0:00:13.2]} 24... Kb8 {[%clk 0:01:06.6]} 25.
Rxe5 {[%clk 0:00:13.4]} 25... Qxe5 {[%clk 0:00:59.7]} 26. Re1 {[%clk 0:00:11.2]}
26... Qg7 {[%clk 0:00:55.1]} 27. Bd3 {[%clk 0:00:09.3]} 27... Rc8 {[%clk
0:00:52.9]} 28. Qb4 {[%clk 0:00:09.4]} 28... Bc6 {[%clk 0:00:47.9]} 29. Kg1
{[%clk 0:00:08]} 29... e5 {[%clk 0:00:43.8]} 30. Qd6+ {[%clk 0:00:07.9]} 30...
Ka8 {[%clk 0:00:43.3]} 31. Rxe5 {[%clk 0:00:07.9]} 31... Rhd8 {[%clk 0:00:42.2]}
32. Qe7 {[%clk 0:00:08.2]} 32... Re8 {[%clk 0:00:40.3]} 33. Rg5 {[%clk
0:00:08.1]} 33... Qh6 {[%clk 0:00:35.5]} 34. Ng4 {[%clk 0:00:08.2]} 34... Rxe7
{[%clk 0:00:31.7]} 35. Nxh6 {[%clk 0:00:08.3]} 35... Ne2+ {[%clk 0:00:25.7]} 36.
Kf2 {[%clk 0:00:07.8]} 36... Nc1 {[%clk 0:00:25.4]} 37. Bf5 {[%clk 0:00:08.2]}
37... Rce8 {[%clk 0:00:25]} 38. Rg7 {[%clk 0:00:08.2]} 38... Re2+ {[%clk
0:00:24.3]} 39. Kg1 {[%clk 0:00:08.8]} 39... d4 {[%clk 0:00:24.5]} 40. Bh3
{[%clk 0:00:05.8]} 40... d3 {[%clk 0:00:24.6]} 41. Rxf7 {[%clk 0:00:02.1]} 41...
d2 {[%clk 0:00:24.3]} 42. Nxd2 {[%clk 0:00:02.7]} 42... Rxd2 {[%clk 0:00:23.6]}
43. g4 {[%clk 0:00:03.5]} 43... a6 {[%clk 0:00:22.3]} 44. Kh2 {[%clk 0:00:04]}
44... Nd3 {[%clk 0:00:22]} 45. g5 {[%clk 0:00:04.2]} 45... Ne1 {[%clk
0:00:22.1]} 46. g6 {[%clk 0:00:02.2]} 46... Bxg2 {[%clk 0:00:22]} 47. Kg3 {[%clk
0:00:01.3]} 47... Bxh3 {[%clk 0:00:21.5]} 48. Kxh3 {[%clk 0:00:02.2]} 48... Re3+
{[%clk 0:00:21]} 49. Kg4 {[%clk 0:00:01.7]} 49... Rg2+ {[%clk 0:00:20.9]} 50.
Kf4 {[%clk 0:00:02.3]} 50... Rf3+ {[%clk 0:00:21.1]} 51. Ke4 {[%clk 0:00:02]}
51... Rxg6 {[%clk 0:00:21]} 52. Rxf3 {[%clk 0:00:01.1]} 52... Nxf3 {[%clk
0:00:21.2]} 53. Nf5 {[%clk 0:00:02]} 53... Ng5+ {[%clk 0:00:20.9]} 54. Ke5
{[%clk 0:00:02.9]} 54... Nf7+ {[%clk 0:00:21]} 55. Kd5 {[%clk 0:00:03.5]} 55...
Rg5 {[%clk 0:00:21.1]} 56. Ke6 {[%clk 0:00:04]} 56... Rxf5 {[%clk 0:00:21.3]}
57. Kxf5 {[%clk 0:00:04.9]} 57... Nd8 {[%clk 0:00:21.9]} 58. Ke4 {[%clk
0:00:05.8]} 58... Kb8 {[%clk 0:00:22.4]} 59. Kd5 {[%clk 0:00:06.7]} 59... Kc7
{[%clk 0:00:23]} 60. b4 {[%clk 0:00:07.6]} 60... Nc6 {[%clk 0:00:23.2]} 61. Kc5
{[%clk 0:00:08.5]} 61... Na7 {[%clk 0:00:22.9]} 62. a4 {[%clk 0:00:07.9]} 62...
b6+ {[%clk 0:00:23.2]} 63. Kd5 {[%clk 0:00:08.5]} 63... b5 {[%clk 0:00:23.6]}
64. axb5 {[%clk 0:00:06.3]} 64... axb5 {[%clk 0:00:22.5]} 65. Kc5 {[%clk
0:00:07.2]} 65... Kb7 {[%clk 0:00:22.8]} 66. Kd6 {[%clk 0:00:07.4]} 66... Kb6
{[%clk 0:00:23.1]} 67. Kd5 {[%clk 0:00:07.6]} 67... Nc6 {[%clk 0:00:23.7]} 68.
Ke4 {[%clk 0:00:07.4]} 68... Nxb4 {[%clk 0:00:23.8]} 0-1